fUSD/lending_fUSD_20250227
["ID","MTS","AMOUNT","RATE_DAILY","PERIOD"]
[354773838,1740682241629,-151.0,0.00015,2]
[354773839,1740682241638,-151.0,0.00015,2]
[354773840,1740682241647,-151.0,0.00015,2]
[354773841,1740682241658,-151.808608,0.00015,2]
[354773842,1740682241676,-452.345356,0.00015,2]
[354773843,1740682241686,-452.345356,0.00015,2]
[354773844,1740682241696,-452.345356,0.00015,2]
[354773845,1740682241705,-452.345356,0.00015,2]
[354773846,1740682241715,-151.0,0.00015,2]
[354773847,1740682241724,-151.0,0.00015,2]
[354773848,1740682241733,-151.0,0.00015,2]
[354773849,1740682241743,-152.145773,0.00015,2]
[354773850,1740682241752,-215.731132,0.00015,2]
[354773851,1740682241761,-215.731132,0.00015,2]
[354773852,1740682241770,-215.731132,0.00015,2]
[354773853,1740682241780,-215.731132,0.00015,2]
[354773854,1740682241788,-151.0,0.00015,2]
[354773855,1740682241799,-151.0,0.00015,2]
[354773856,1740682241808,-151.0,0.00015,2]
[354773857,1740682241817,-151.0,0.00015,2]
[354773858,1740682241826,-151.0,0.00015,2]
[354773859,1740682241835,-151.0,0.00015,2]
[354773860,1740682241845,-231.988162,0.00015,2]
[354773861,1740682241854,-231.988162,0.00015,2]
[354773862,1740682241864,-151.0,0.00015,2]
[354773863,1740682241873,-151.0,0.00015,2]
[354773864,1740682241882,-231.988162,0.00015,2]
[354773865,1740682241891,-231.988162,0.00015,2]
[354773866,1740682241901,-151.0,0.00015,2]
[354773867,1740682241910,-151.0,0.00015,2]
[354773868,1740682241920,-151.0,0.00015,2]
[354773869,1740682241929,-151.0,0.00015,2]
[354773870,1740682241939,-151.0,0.00015,2]
[354773871,1740682241948,-151.0,0.00015,2]
[354773872,1740682241957,-151.0,0.00015,2]
[354773873,1740682241966,-151.0,0.00015,2]
[354773874,1740682241976,-378.525501,0.00015,2]
[354773875,1740682241985,-378.525501,0.00015,2]
[354773876,1740682241994,-378.525501,0.00015,2]
[354773877,1740682242005,-378.525501,0.00015,2]
[354773878,1740682242017,-151.0,0.00015,2]
[354773879,1740682242026,-151.763023,0.00015,2]
[354773880,1740682242035,-151.0,0.00015,2]
[354773881,1740682242046,-196.081555,0.00015,2]
[354773882,1740682242056,-196.081555,0.00015,2]
[354773883,1740682242065,-196.081555,0.00015,2]
[354773884,1740682242074,-151.0,0.00015,2]
[354773885,1740682242084,-196.081555,0.00015,2]
[354773886,1740682242094,-153.813896,0.00015,2]
[354773887,1740682242103,-151.0,0.00015,2]
[354773888,1740682242112,-151.0,0.00015,2]
[354773889,1740682242122,-151.0,0.00015,2]
[354773890,1740682242131,-151.0,0.00015,2]
[354773891,1740682242140,-151.0,0.00015,2]
[354773892,1740682242149,-151.0,0.00015,2]
[354773893,1740682242158,-151.0,0.00015,2]
[354773894,1740682242167,-151.0,0.00015,2]
[354773895,1740682242177,-151.0,0.00015,2]
[354773896,1740682242186,-792.403415,0.00015,2]
[354773897,1740682242195,-792.403415,0.00015,2]
[354773898,1740682242204,-792.403415,0.00015,2]
[354773899,1740682242213,-792.403415,0.00015,2]
[354773900,1740682242223,-1230.19,0.00015012,2]
[354773901,1740682242232,-500.0,0.00015041,2]
[354773902,1740682242241,-1230.19,0.0001509,2]
[354773903,1740682242251,-578.0,0.00015123,2]
[354773904,1740682242259,-1230.19,0.00015167,2]
[354773905,1740682242268,-1230.19,0.00015244,2]
[354773906,1740682242278,-1230.19,0.00015322,2]
[354773907,1740682242287,-500.0,0.00015342,2]
[354773908,1740682242299,-300.0,0.0001539,2]
[354773909,1740682242309,-1230.19,0.00015399,2]
[354773910,1740682242318,-1230.19,0.00015476,2]
[354773911,1740682242328,-1230.19,0.00015554,2]
[354773912,1740682242337,-326.71,0.00015559,2]
[354773913,1740682242347,-150.0,0.00015559,7]
[354773914,1740682242356,-562.1,0.00015567,2]
[354773915,1740682242367,-250.0,0.00015569,2]
[354773916,1740682242376,-300.0,0.00015569,2]
[354773917,1740682242386,-666.0,0.00015569,2]
[354773918,1740682242396,-27992.83,0.0001557,2]
[354773919,1740682242405,-151.0,0.0001557,2]
[354773920,1740682242415,-151.0,0.0001557,2]
[354773921,1740682242425,-378.525501,0.0001557,2]
[354773922,1740682242434,-378.525501,0.0001557,2]
[354773923,1740682242444,-196.081555,0.0001557,2]
[354773924,1740682242453,-196.081555,0.0001557,2]
[354773925,1740682242463,-151.0,0.0001557,2]
[354773926,1740682242472,-155.945124,0.0001557,2]
[354773927,1740682242482,-151.0,0.0001557,2]
[354773928,1740682242491,-162.930366,0.0001557,2]
[354773929,1740682242500,-151.0,0.0001557,2]
[354773930,1740682242509,-792.403415,0.0001557,2]
[354773931,1740682242518,-792.403415,0.0001557,2]
[354773932,1740682242527,-23900.0,0.0001557,2]
[354773933,1740682242536,-182.79,0.00015571,2]
[354773934,1740682242548,-500.0,0.00015575,2]
[354773935,1740682242558,-1000.0,0.00015576,2]
[354773936,1740682242567,-300.0,0.00015578,2]
[354773937,1740682242576,-666.0,0.00015578,2]
[354773938,1740682242585,-151.0,0.00015579,2]
[354773939,1740682242594,-241.772781,0.00015579,2]
[354773940,1740682242604,-151.0,0.00015579,2]
[354773942,1740682242613,-151.0,0.00015579,2]
[354773944,1740682242622,-151.0,0.00015579,2]
[354773946,1740682242631,-151.0,0.00015579,2]
[354773947,1740682242640,-151.0,0.00015579,2]
[354773948,1740682242649,-152.396645,0.00015579,2]
[354773949,1740682242658,-151.0,0.00015579,2]
[354773950,1740682242667,-151.0,0.00015579,2]
[354773951,1740682242676,-151.0,0.00015579,2]
[354773952,1740682242684,-151.0,0.00015579,2]
[354773953,1740682242693,-255.363403,0.00015579,2]
[354773954,1740682242702,-255.363403,0.00015579,2]
[354773955,1740682242711,-151.0,0.00015579,2]
[354773956,1740682242719,-151.0,0.00015579,2]
[354773957,1740682242728,-151.0,0.00015579,2]
[354773958,1740682242737,-151.0,0.00015579,2]
[354773959,1740682242746,-153.178801,0.00015579,2]
[354773960,1740682242755,-151.0,0.00015579,2]
[354773961,1740682242764,-151.0,0.00015579,2]
[354773962,1740682242773,-151.0,0.00015579,2]
[354773963,1740682242783,-151.0,0.00015579,2]
[354773964,1740682242794,-154.571206,0.00015579,2]
[354773965,1740682242803,-151.0,0.00015579,2]
[354773966,1740682242812,-151.0,0.00015579,2]
[354773967,1740682242821,-151.0,0.00015579,2]
[354773968,1740682242831,-151.0,0.00015579,2]
[354773969,1740682242840,-151.0,0.00015579,2]
[354773970,1740682242849,-174.552719,0.00015579,2]
[354773971,1740682242858,-174.552719,0.00015579,2]
[354773972,1740682242867,-151.0,0.00015579,2]
[354773973,1740682242876,-151.0,0.00015579,2]
[354773974,1740682242886,-151.0,0.00015579,2]
[354773975,1740682242895,-156.516224,0.00015579,2]
[354773976,1740682242904,-284.559444,0.00015579,2]
[354773977,1740682242913,-151.0,0.00015579,2]
[354773978,1740682242922,-284.559444,0.00015579,2]
[354773979,1740682242931,-151.0,0.00015579,2]
[354773980,1740682242941,-151.0,0.00015579,2]
[354773981,1740682242951,-151.0,0.00015579,2]
[354773982,1740682242961,-164.023401,0.00015579,2]
[354773983,1740682242971,-164.023401,0.00015579,2]
[354773984,1740682242982,-151.0,0.00015579,2]
[354773985,1740682242991,-227.743728,0.00015579,2]
[354773986,1740682243001,-151.0,0.00015579,2]
[354773987,1740682243018,-204.605139,0.00015579,2]
[354773988,1740682243028,-151.0,0.00015579,2]
[354773989,1740682243038,-151.0,0.00015579,2]
[354773990,1740682243049,-151.0,0.00015579,2]
[354773991,1740682243058,-174.93,0.00015579,2]
[354773992,1740682243068,-174.93,0.00015579,2]
[354773993,1740682243077,-151.0,0.00015579,2]
[354773994,1740682243091,-151.0,0.00015579,2]
[354773995,1740682243100,-452.345356,0.00015579,2]
[354773996,1740682243110,-452.345356,0.00015579,2]
[354773997,1740682243119,-215.731132,0.00015579,2]
[354773998,1740682243128,-215.731132,0.00015579,2]
[354773999,1740682243138,-151.0,0.00015579,2]
[354774000,1740682243148,-151.0,0.00015579,2]
[354774001,1740682243157,-155.830674,0.00015579,2]
[354774002,1740682243167,-231.988162,0.00015579,2]
[354774003,1740682243177,-151.0,0.00015579,2]
[354774004,1740682243187,-231.988162,0.00015579,2]
[354774005,1740682243196,-151.0,0.00015579,2]
[354774006,1740682243206,-151.0,0.00015579,2]
[354774007,1740682243215,-154.578108,0.00015579,2]
[354774008,1740682243225,-151.0,0.00015579,2]
[354774009,1740682243234,-150.0,0.00015582,2]
[354774010,1740682243244,-341.36,0.00015589,2]
[354774011,1740682243254,-155.3,0.00015597,2]
[354774012,1740682243263,-200.0,0.00015597,2]
[354774014,1740682243273,-151.0,0.00015621,2]
[354774015,1740682243282,-151.0,0.00015621,2]
[354774016,1740682243291,-208.588606,0.00015621,2]
[354774017,1740682243302,-208.588606,0.00015621,2]
[354774018,1740682243312,-151.0,0.00015621,2]
[354774019,1740682243322,-151.0,0.00015621,2]
[354774020,1740682243331,-151.0,0.00015621,2]
[354774021,1740682243341,-154.102602,0.00015621,2]
[354774022,1740682243350,-215.731132,0.00015621,2]
[354774023,1740682243360,-215.731132,0.00015621,2]
[354774025,1740682243369,-231.988162,0.00015621,2]
[354774030,1740682243601,-151.0,0.00015621,2]
[354774031,1740682243612,-231.988162,0.00015621,2]
[354774032,1740682243625,-151.0,0.00015621,2]
[354774033,1740682243637,-1230.19,0.00015631,2]
[354774034,1740682243646,-156.51,0.00015635,2]
[354774035,1740682243655,-187.98,0.00015701,2]
[354774036,1740682243664,-157.231664,0.00015708,2]
[354774037,1740682243672,-378.525501,0.00015708,2]
[354774038,1740682243681,-378.525501,0.00015708,2]
[354774039,1740682243690,-1230.19,0.00015708,2]
[354774040,1740682243698,-1238.26,0.00015744,2]
[354774041,1740682243707,-1230.19,0.00015786,2]
[354774042,1740682243716,-151.0,0.00015786,2]
[354774043,1740682243725,-151.0,0.00015786,2]
[354774044,1740682243734,-792.403415,0.00015786,2]
[354774045,1740682243743,-792.403415,0.00015786,2]
[354774046,1740682243751,-735.62,0.00015834,2]
[354774047,1740682243761,-151.0,0.00015863,2]
[354774048,1740682243769,-196.081555,0.00015863,2]
[354774049,1740682243778,-196.081555,0.00015863,2]
[354774050,1740682243787,-151.0,0.00015863,2]
[354774051,1740682243797,-1230.19,0.00015863,2]
[354774052,1740682243805,-1230.19,0.00015941,2]
[354774053,1740682243815,-2845.52219921,0.00016,2]
[354774054,1740682243824,-1230.19,0.00016018,2]
[354774055,1740682243833,-150.46,0.00016036,2]
[354774056,1740682243843,-1230.19,0.00016095,2]
[354774057,1740682243852,-167.8,0.00016112,2]
[354774058,1740682243861,-1230.19,0.00016173,2]
[354774059,1740682243871,-150.0,0.00016287,2]
[354774060,1740682243880,-150.0,0.00016308,2]
[354774061,1740682243890,-182.79,0.00016349,2]
[354774062,1740682243899,-156.51,0.00016417,2]
[354774063,1740682243909,-150.0,0.000165,2]
[354774064,1740682243918,-718.0,0.000167,2]
[354774065,1740682243927,-182.79,0.00017128,2]
[354774066,1740682243937,-156.51,0.00017198,2]
[354774067,1740682243946,-517.81438,0.0001725,2]
[354774068,1740682243955,-150.46,0.00017359,2]
[354774069,1740682243964,-151.0,0.00017395,2]
[354774070,1740682243973,-151.0,0.00017395,2]
[354774071,1740682243982,-151.0,0.00017395,2]
[354774072,1740682243991,-151.0,0.00017395,2]
[354774073,1740682244000,-151.0,0.00017395,2]
[354774074,1740682244012,-151.0,0.00017395,2]
[354774075,1740682244021,-151.0,0.00017395,2]
[354774076,1740682244030,-151.0,0.00017395,2]
[354774077,1740682244039,-151.0,0.00017395,2]
[354774078,1740682244051,-255.363403,0.00017395,2]
[354774079,1740682244061,-255.363403,0.00017395,2]
[354774080,1740682244070,-151.0,0.00017395,2]
[354774081,1740682244079,-151.0,0.00017395,2]
[354774082,1740682244091,-151.0,0.00017395,2]
[354774083,1740682244102,-151.0,0.00017395,2]
[354774084,1740682244111,-151.0,0.00017395,2]
[354774085,1740682244121,-151.0,0.00017395,2]
[354774086,1740682244131,-151.0,0.00017395,2]
[354774087,1740682244140,-151.0,0.00017395,2]
[354774088,1740682244150,-151.0,0.00017395,2]
[354774089,1740682244159,-151.0,0.00017395,2]
[354774090,1740682244168,-151.0,0.00017395,2]
[354774091,1740682244178,-151.0,0.00017395,2]
[354774092,1740682244187,-151.0,0.00017395,2]
[354774093,1740682244196,-174.552719,0.00017395,2]
[354774094,1740682244206,-174.552719,0.00017395,2]
[354774095,1740682244215,-151.0,0.00017395,2]
[354774096,1740682244225,-151.0,0.00017395,2]
[354774097,1740682244234,-151.0,0.00017395,2]
[354774098,1740682244243,-284.559444,0.00017395,2]
[354774099,1740682244252,-151.0,0.00017395,2]
[354774100,1740682244262,-284.559444,0.00017395,2]
[354774101,1740682244273,-151.0,0.00017395,2]
[354774102,1740682244282,-151.0,0.00017395,2]
[354774103,1740682244291,-151.0,0.00017395,2]
[354774104,1740682244302,-164.023401,0.00017395,2]
[354774105,1740682244314,-164.023401,0.00017395,2]
[354774106,1740682244324,-151.0,0.00017395,2]
[354774107,1740682244334,-151.0,0.00017395,2]
[354774108,1740682244343,-151.0,0.00017395,2]
[354774109,1740682244352,-151.0,0.00017395,2]
[354774110,1740682244362,-151.0,0.00017395,2]
[354774111,1740682244371,-174.93,0.00017395,2]
[354774112,1740682244380,-174.93,0.00017395,2]
[354774113,1740682244390,-151.0,0.00017395,2]
[354774114,1740682244399,-151.0,0.00017395,2]
[354774115,1740682244409,-452.345356,0.00017395,2]
[354774116,1740682244418,-452.345356,0.00017395,2]
[354774117,1740682244427,-151.0,0.00017395,2]
[354774118,1740682244437,-151.0,0.00017395,2]
[354774119,1740682244446,-151.0,0.00017395,2]
[354774120,1740682244455,-151.0,0.00017395,2]
[354774121,1740682244464,-241.772781,0.00017398,2]
[354774122,1740682244474,-151.0,0.00017398,2]
[354774123,1740682244483,-326.71,0.00017504,2]
[354774124,1740682244492,-1000.0,0.00017523,2]
[354774125,1740682244501,-182.79,0.00017906,2]
[354774126,1740682244510,-735.62,0.00018098,2]
[354774127,1740682244519,-4248.23191707,0.0001824,2]
[354774128,1740682244528,-471.71963867,0.00018251,2]
[354774129,1740682244538,-151.0,0.00018499,2]
[354774130,1740682244549,-151.0,0.00018499,2]
[354774131,1740682244558,-151.0,0.00018499,2]
[354774132,1740682244567,-207.408186,0.00018499,2]
[354774133,1740682244576,-10267.80485187,0.000185,3]
[354774134,1740682244586,-9661.0,0.000185,2]
[354774135,1740682244595,-151.0,0.000185,2]
[354774136,1740682244604,-152.47319,0.000185,2]
[354774137,1740682244613,-253.06296,0.000185,2]
[354774138,1740682244623,-208.588606,0.000185,2]
[354774139,1740682244632,-208.588606,0.000185,2]
[354774140,1740682244641,-151.0,0.000185,2]
[354774141,1740682244650,-215.731132,0.000185,2]
[354774142,1740682244659,-215.731132,0.000185,2]
[354774143,1740682244668,-231.988162,0.000185,2]
[354774144,1740682244678,-151.0,0.000185,2]
[354774145,1740682244687,-231.988162,0.000185,2]
[354774146,1740682244696,-151.0,0.000185,2]
[354774147,1740682244705,-378.525501,0.000185,2]
[354774148,1740682244714,-378.525501,0.000185,2]
[354774149,1740682244723,-151.0,0.000185,2]
[354774150,1740682244733,-151.0,0.000185,2]
[354774151,1740682244742,-792.403415,0.000185,2]
[354774152,1740682244751,-792.403415,0.000185,2]
[354774153,1740682244760,-1003.48179644,0.00018632,3]
[354774154,1740682244769,-151.0,0.00018632,2]
[354774155,1740682244779,-151.0,0.00018632,2]
[354774156,1740682244788,-151.0,0.00018632,2]
[354774157,1740682244798,-196.081555,0.00018632,2]
[354774158,1740682244807,-196.081555,0.00018632,2]
[354774159,1740682244816,-151.0,0.00018632,2]
[354774160,1740682244825,-150.46,0.00018683,2]
[354774161,1740682244834,-182.79,0.00018685,2]
[354774162,1740682244843,-167.8,0.00018771,2]
[354774163,1740682244852,-1446.30277264,0.000188,10]
[354774164,1740682244861,-300.0,0.00018999,2]
[354774165,1740682244870,-77311.21189028,0.00019,2]
[354774166,1740682244879,-2876.16365871,0.00019,2]
[354774167,1740682244888,-961.61,0.00019,2]
[354774168,1740682244897,-3718.19879113,0.00019,2]
[354774169,1740682244907,-10353.42345455,0.00019,2]
[354774170,1740682244916,-151.0,0.00019,2]
[354774171,1740682244925,-151.0,0.00019,2]
[354774172,1740682244934,-151.0,0.00019,2]
[354774173,1740682244943,-151.0,0.00019,2]
[354774174,1740682244952,-151.0,0.00019,2]
[354774175,1740682244961,-151.0,0.00019,2]
[354774176,1740682244970,-208.588606,0.00019,2]
[354774177,1740682244979,-208.588606,0.00019,2]
[354774178,1740682244988,-151.0,0.00019,2]
[354774179,1740682244997,-295.27911,0.00019,2]
[354774180,1740682245009,-235.860713,0.00019,2]
[354774181,1740682245019,-151.0,0.00019,2]
[354774182,1740682245028,-241.772781,0.00019,2]
[354774183,1740682245037,-151.0,0.00019,2]
[354774184,1740682245046,-151.496643,0.00019,2]
[354774185,1740682245056,-151.0,0.00019,2]
[354774186,1740682245065,-182.528585,0.00019,2]
[354774187,1740682245074,-151.0,0.00019,2]
[354774188,1740682245085,-151.0,0.00019,2]
[354774189,1740682245095,-151.0,0.00019,2]
[354774190,1740682245104,-151.0,0.00019,2]
[354774191,1740682245113,-155.637781,0.00019,2]
[354774192,1740682245122,-255.363403,0.00019,2]
[354774193,1740682245132,-255.363403,0.00019,2]
[354774194,1740682245141,-153.066563,0.00019,2]
[354774195,1740682245150,-151.0,0.00019,2]
[354774196,1740682245160,-151.0,0.00019,2]
[354774197,1740682245169,-266.693343,0.00019,2]
[354774198,1740682245179,-152.48307,0.00019,2]
[354774199,1740682245188,-151.0,0.00019,2]
[354774200,1740682245199,-151.0,0.00019,2]
[354774201,1740682245208,-151.565135,0.00019,2]
[354774202,1740682245217,-151.0,0.00019,2]
[354774203,1740682245227,-151.0,0.00019,2]
[354774204,1740682245237,-151.0,0.00019,2]
[354774205,1740682245247,-151.0,0.00019,2]
[354774206,1740682245258,-168.074982,0.00019,2]
[354774207,1740682245267,-174.552719,0.00019,2]
[354774208,1740682245278,-174.552719,0.00019,2]
[354774209,1740682245287,-151.0,0.00019,2]
[354774210,1740682245297,-151.0,0.00019,2]
[354774211,1740682245306,-151.0,0.00019,2]
[354774212,1740682245315,-284.559444,0.00019,2]
[354774213,1740682245325,-151.0,0.00019,2]
[354774214,1740682245334,-269.152737,0.00019,2]
[354774215,1740682245344,-284.559444,0.00019,2]
[354774216,1740682245353,-151.0,0.00019,2]
[354774217,1740682245362,-151.0,0.00019,2]
[354774218,1740682245371,-164.023401,0.00019,2]
[354774219,1740682245380,-164.023401,0.00019,2]
[354774220,1740682245390,-151.0,0.00019,2]
[354774221,1740682245399,-161.47913,0.00019,2]
[354774222,1740682245408,-151.0,0.00019,2]
[354774223,1740682245418,-151.0,0.00019,2]
[354774224,1740682245427,-151.0,0.00019,2]
[354774225,1740682245436,-174.93,0.00019,2]
[354774226,1740682245446,-174.93,0.00019,2]
[354774227,1740682245457,-151.0,0.00019,2]
[354774228,1740682245468,-151.0,0.00019,2]
[354774229,1740682245477,-452.345356,0.00019,2]
[354774230,1740682245487,-452.345356,0.00019,2]
[354774231,1740682245496,-215.731132,0.00019,2]
[354774232,1740682245506,-215.731132,0.00019,2]
[354774233,1740682245515,-178.811906,0.00019,2]
[354774234,1740682245525,-151.0,0.00019,2]
[354774235,1740682245534,-151.0,0.00019,2]
[354774236,1740682245543,-231.988162,0.00019,2]
[354774237,1740682245554,-231.988162,0.00019,2]
[354774238,1740682245563,-151.0,0.00019,2]
[354774239,1740682245572,-151.0,0.00019,2]
[354774240,1740682245582,-151.0,0.00019,2]
[354774241,1740682245591,-150.0,0.00019,2]
[354774242,1740682245601,-150.0,0.00019,2]
[354774243,1740682245611,-150.0,0.00019,2]
[354774244,1740682245623,-500.0,0.00019,2]
[354774245,1740682245633,-150.0,0.00019,2]
[354774246,1740682245642,-1319.0,0.00019,2]
[354774247,1740682245651,-500.0,0.00019,2]
[354774248,1740682245660,-378.525501,0.00019,2]
[354774249,1740682245673,-378.525501,0.00019,2]
[354774250,1740682245682,-151.0,0.00019,2]
[354774251,1740682245691,-196.081555,0.00019,2]
[354774252,1740682245700,-196.081555,0.00019,2]
[354774253,1740682245709,-151.0,0.00019,2]
[354774254,1740682245718,-151.0,0.00019,2]
[354774255,1740682245727,-151.0,0.00019,2]
[354774256,1740682245737,-792.403415,0.00019,2]
[354774257,1740682245746,-792.403415,0.00019,2]
[354774258,1740682245756,-1000.0,0.0001902,2]
[354774259,1740682245765,-150.0,0.00019027,2]
[354774260,1740682245774,-180.45160267,0.00019027,2]
[354774261,1740682245783,-500.0,0.00019027,2]
[354774262,1740682245793,-1319.0,0.00019027,2]
[354774263,1740682245802,-500.0,0.00019027,2]
[354774264,1740682245811,-150.0,0.00019055,2]
[354774266,1740682245821,-1319.0,0.00019055,2]
[354774268,1740682245831,-500.0,0.00019055,2]
[354774270,1740682245840,-150.0,0.00019082,2]
[354774271,1740682245849,-1319.0,0.00019082,2]
[354774272,1740682245859,-500.0,0.00019082,2]
[354774273,1740682245868,-174.00046065,0.0001911,2]
[354774274,1740682245878,-1319.0,0.0001911,2]
[354774275,1740682245887,-517.40986056,0.0001911,2]
[354774276,1740682245896,-5084.17267152,0.0001911,2]
[354774277,1740682245906,-151.0,0.0001911,2]
[354774278,1740682245916,-164.023401,0.0001911,2]
[354774279,1740682245925,-164.023401,0.0001911,2]
[354774280,1740682245934,-151.0,0.0001911,2]
[354774281,1740682245945,-152.219353,0.0001911,2]
[354774282,1740682245954,-151.0,0.0001911,2]
[354774283,1740682245963,-151.0,0.0001911,2]
[354774284,1740682245973,-174.93,0.0001911,2]
[354774285,1740682245982,-174.93,0.0001911,2]
[354774286,1740682245991,-151.0,0.0001911,2]
[354774287,1740682246001,-151.0,0.0001911,2]
[354774288,1740682246012,-452.345356,0.0001911,2]
[354774289,1740682246022,-452.345356,0.0001911,2]
[354774290,1740682246031,-215.731132,0.0001911,2]
[354774291,1740682246042,-215.731132,0.0001911,2]
[354774292,1740682246051,-151.0,0.0001911,2]
[354774293,1740682246060,-151.0,0.0001911,2]
[354774294,1740682246069,-231.988162,0.0001911,2]
[354774295,1740682246079,-231.988162,0.0001911,2]
[354774296,1740682246090,-151.0,0.0001911,2]
[354774297,1740682246099,-253.794155,0.0001911,2]
[354774298,1740682246108,-151.0,0.0001911,2]
[354774299,1740682246117,-378.525501,0.0001911,2]
[354774300,1740682246127,-378.525501,0.0001911,2]
[354774301,1740682246136,-151.0,0.0001911,2]
[354774302,1740682246146,-196.081555,0.0001911,2]
[354774303,1740682246155,-196.081555,0.0001911,2]
[354774304,1740682246164,-151.0,0.0001911,2]
[354774305,1740682246174,-151.0,0.0001911,2]
[354774306,1740682246183,-792.403415,0.0001911,2]
[354774307,1740682246192,-792.403415,0.0001911,2]
[354774308,1740682246202,-1319.0,0.00019137,2]
[354774309,1740682246211,-1319.0,0.00019164,2]
[354774310,1740682246220,-1319.0,0.00019192,2]
[354774311,1740682246229,-1319.0,0.00019219,2]
[354774312,1740682246239,-1319.0,0.00019247,2]
[354774313,1740682246248,-1319.0,0.00019274,2]
[354774314,1740682246257,-1319.0,0.00019301,2]
[354774315,1740682246267,-1319.0,0.00019329,2]
[354774316,1740682246276,-1319.0,0.00019356,2]
[354774317,1740682246286,-1319.0,0.00019384,2]
[354774318,1740682246295,-1319.0,0.00019411,2]
[354774319,1740682246306,-1319.0,0.00019438,2]
[354774320,1740682246315,-326.71,0.00019449,2]
[354774321,1740682246324,-1319.0,0.00019466,2]
[354774322,1740682246334,-1000.0,0.0001947,2]
[354774323,1740682246343,-1319.0,0.00019493,2]
[354774324,1740682246352,-155.3,0.00019496,2]
[354774325,1740682246362,-300.0,0.00019499,2]
[354774326,1740682246371,-11376.11618846,0.000195,2]
[354774327,1740682246381,-208.588606,0.000195,2]
[354774328,1740682246391,-208.588606,0.000195,2]
[354774329,1740682246401,-151.0,0.000195,2]
[354774330,1740682246411,-151.0,0.000195,2]
[354774331,1740682246420,-241.772781,0.000195,2]
[354774332,1740682246429,-151.0,0.000195,2]
[354774333,1740682246438,-151.0,0.000195,2]
[354774334,1740682246448,-151.0,0.000195,2]
[354774335,1740682246457,-151.0,0.000195,2]
[354774336,1740682246467,-153.76939,0.000195,2]
[354774337,1740682246477,-151.0,0.000195,2]
[354774338,1740682246486,-255.363403,0.000195,2]
[354774339,1740682246496,-255.363403,0.000195,2]
[354774340,1740682246505,-151.0,0.000195,2]
[354774341,1740682246514,-151.0,0.000195,2]
[354774342,1740682246523,-151.0,0.000195,2]
[354774343,1740682246533,-224.882365,0.000195,2]
[354774344,1740682246542,-151.0,0.000195,2]
[354774345,1740682246552,-151.0,0.000195,2]
[354774346,1740682246562,-151.0,0.000195,2]
[354774347,1740682246571,-151.0,0.000195,2]
[354774348,1740682246581,-174.552719,0.000195,2]
[354774349,1740682246590,-174.552719,0.000195,2]